[Event "Titled Tuesday Blitz February 28 Late 2023"]
[White "Indjic, Aleksandar"]
[Black "Pranav, V"]
[WhiteFideId "911925"]
[BlackFideId "25060783"]
[WhiteElo "2625"]
[BlackElo "2500"]
[Result "1/2-1/2"]
[Round "09"]
[TimeControl "180+2"]
[Date "2023.02.28"]
[WhiteClock "0:00:15"]
[BlackClock "0:00:02"]

1. d4 {[%clk 0:03:00]}  Nf6 {[%clk 0:03:00]} 2. c4 {[%clk 0:03:01]}  e6 {[%clk 0:03:00]} 3. Nc3 {[%clk 0:03:02]}  Bb4 {[%clk 0:03:00]} 4. Qc2 {[%clk 0:03:02]}  O-O {[%clk 0:03:01]} 5. Nf3 {[%clk 0:03:03]}  d6 {[%clk 0:03:00]} 6. Bd2 {[%clk 0:03:01]}  Nbd7 {[%clk 0:02:58]} 7. a3 {[%clk 0:03:01]}  Bxc3 {[%clk 0:02:58]} 8. Bxc3 {[%clk 0:03:02]}  b6 {[%clk 0:02:56]} 9. e3 {[%clk 0:02:50]}  Bb7 {[%clk 0:02:56]} 10. b4 {[%clk 0:02:50]}  Ne4 {[%clk 0:02:56]} 11. Bb2 {[%clk 0:02:51]}  Qe7 {[%clk 0:02:55]} 12. Be2 {[%clk 0:02:50]}  f5 {[%clk 0:02:54]} 13. O-O {[%clk 0:02:51]}  Rae8 {[%clk 0:02:50]} 14. Rfd1 {[%clk 0:02:43]}  Ng5 {[%clk 0:02:43]} 15. d5 {[%clk 0:02:33]}  e5 {[%clk 0:02:39]} 16. Nxg5 {[%clk 0:02:29]}  Qxg5 {[%clk 0:02:40]} 17. Qd2 {[%clk 0:02:30]}  Nf6 {[%clk 0:02:38]} 18. f3 {[%clk 0:02:26]}  h6 {[%clk 0:02:19]} 19. a4 {[%clk 0:02:24]}  Bc8 {[%clk 0:01:43]} 20. b5 {[%clk 0:02:17]}  Nd7 {[%clk 0:01:26]} 21. a5 {[%clk 0:02:16]}  Nc5 {[%clk 0:01:26]} 22. Ra3 {[%clk 0:02:15]}  Rf6 {[%clk 0:01:18]} 23. Bf1 {[%clk 0:02:13]}  Rg6 {[%clk 0:01:12]} 24. Qf2 {[%clk 0:02:12]}  f4 {[%clk 0:01:04]} 25. e4 {[%clk 0:02:09]}  h5 {[%clk 0:01:03]} 26. axb6 {[%clk 0:02:07]}  axb6 {[%clk 0:01:04]} 27. Ra7 {[%clk 0:02:07]}  Nb7 {[%clk 0:01:04]} 28. Kh1 {[%clk 0:01:45]}  h4 {[%clk 0:01:04]} 29. h3 {[%clk 0:01:44]}  Qd8 {[%clk 0:01:02]} 30. Ra8 {[%clk 0:01:41]}  Rg3 {[%clk 0:01:02]} 31. Rda1 {[%clk 0:01:39]}  Nc5 {[%clk 0:01:00]} 32. Rb8 {[%clk 0:01:33]}  Qe7 {[%clk 0:00:57]} 33. Raa8 {[%clk 0:01:32]}  Bd7 {[%clk 0:00:57]} 34. Bc3 {[%clk 0:01:23]}  Nxe4 {[%clk 0:00:53]} 35. Rxe8+ {[%clk 0:01:13]}  Bxe8 {[%clk 0:00:53]} 36. fxe4 {[%clk 0:01:09]}  Rxc3 {[%clk 0:00:52]} 37. Be2 {[%clk 0:01:09]}  Kh7 {[%clk 0:00:22]} 38. Rxe8 {[%clk 0:01:08]}  Qxe8 {[%clk 0:00:22]} 39. Qxh4+ {[%clk 0:01:08]}  Kg8 {[%clk 0:00:23]} 40. Bg4 {[%clk 0:01:08]}  g6 {[%clk 0:00:10]} 41. Qh6 {[%clk 0:00:52]}  Kf7 {[%clk 0:00:08]} 42. Qh7+ {[%clk 0:00:49]}  Kf6 {[%clk 0:00:08]} 43. Qxc7 {[%clk 0:00:49]}  Qe7 {[%clk 0:00:08]} 44. Qc8 {[%clk 0:00:46]}  Kg7 {[%clk 0:00:07]} 45. Be6 {[%clk 0:00:38]}  f3 {[%clk 0:00:04]} 46. Qg8+ {[%clk 0:00:29]}  Kh6 {[%clk 0:00:04]} 47. Qh8+ {[%clk 0:00:29]}  Kg5 {[%clk 0:00:02]} 48. g3 {[%clk 0:00:28]}  Rc1+ {[%clk 0:00:02]} 49. Kh2 {[%clk 0:00:28]}  Rc2+ {[%clk 0:00:02]} 50. Kh1 {[%clk 0:00:18]}  Rc1+ {[%clk 0:00:02]} 51. Kh2 {[%clk 0:00:19]}  Rc2+ {[%clk 0:00:02]} 52. Kh1 {[%clk 0:00:15]}  Rc1+ {[%clk 0:00:02]} 1/2-1/2


[Site "https://www.chess.com"]

[Event "Titled Tuesday Blitz February 28 Late 2023"]
[White "Yu, Yangyi"]
[Black "Durarbayli, Vasif"]
[WhiteFideId "8603820"]
[BlackFideId "13402935"]
[WhiteElo "2783"]
[BlackElo "2543"]
[Result "1-0"]
[Round "09"]
[TimeControl "180+2"]
[Date "2023.02.28"]
[WhiteClock "0:00:06"]
[BlackClock "0:00:02"]

1. Nf3 {[%clk 0:03:00]}  d5 {[%clk 0:02:59]} 2. g3 {[%clk 0:03:00]}  g6 {[%clk 0:02:59]} 3. Bg2 {[%clk 0:03:00]}  Bg7 {[%clk 0:03:00]} 4. d4 {[%clk 0:03:00]}  c6 {[%clk 0:02:59]} 5. O-O {[%clk 0:02:58]}  Nf6 {[%clk 0:02:59]} 6. b3 {[%clk 0:02:58]}  a5 {[%clk 0:02:57]} 7. a4 {[%clk 0:02:55]}  O-O {[%clk 0:02:53]} 8. Bb2 {[%clk 0:02:55]}  Na6 {[%clk 0:02:45]} 9. Re1 {[%clk 0:02:54]}  Bf5 {[%clk 0:02:37]} 10. Nh4 {[%clk 0:02:48]}  Bg4 {[%clk 0:02:34]} 11. h3 {[%clk 0:02:42]}  Be6 {[%clk 0:02:33]} 12. Nd2 {[%clk 0:02:39]}  c5 {[%clk 0:02:26]} 13. Nhf3 {[%clk 0:02:31]}  Qc8 {[%clk 0:01:45]} 14. Kh2 {[%clk 0:02:09]}  cxd4 {[%clk 0:01:44]} 15. Bxd4 {[%clk 0:02:01]}  Nb4 {[%clk 0:01:40]} 16. c3 {[%clk 0:01:37]}  Nc6 {[%clk 0:01:38]} 17. Rc1 {[%clk 0:01:37]}  Ra6 {[%clk 0:01:04]} 18. e3 {[%clk 0:01:30]}  Bf5 {[%clk 0:01:01]} 19. c4 {[%clk 0:01:28]}  dxc4 {[%clk 0:00:45]} 20. Rxc4 {[%clk 0:01:24]}  Be6 {[%clk 0:00:39]} 21. Rc2 {[%clk 0:01:15]}  Qb8 {[%clk 0:00:39]} 22. Bc3 {[%clk 0:00:55]}  Rd8 {[%clk 0:00:35]} 23. Nd4 {[%clk 0:00:54]}  Bd5 {[%clk 0:00:28]} 24. Qe2 {[%clk 0:00:45]}  Bxg2 {[%clk 0:00:18]} 25. Kxg2 {[%clk 0:00:46]}  Nd5 {[%clk 0:00:18]} 26. N2f3 {[%clk 0:00:32]}  Nxc3 {[%clk 0:00:11]} 27. Rxc3 {[%clk 0:00:33]}  Nxd4 {[%clk 0:00:08]} 28. exd4 {[%clk 0:00:32]}  e6 {[%clk 0:00:08]} 29. Rec1 {[%clk 0:00:30]}  Rad6 {[%clk 0:00:05]} 30. Rc7 {[%clk 0:00:23]}  R6d7 {[%clk 0:00:05]} 31. Rxd7 {[%clk 0:00:18]}  Rxd7 {[%clk 0:00:05]} 32. Qe4 {[%clk 0:00:18]}  Bf6 {[%clk 0:00:04]} 33. Rc5 {[%clk 0:00:18]}  b6 {[%clk 0:00:03]} 34. Rc6 {[%clk 0:00:17]}  Rd5 {[%clk 0:00:04]} 35. Qc2 {[%clk 0:00:16]}  Kg7 {[%clk 0:00:04]} 36. Rc8 {[%clk 0:00:15]}  Qb7 {[%clk 0:00:04]} 37. Rc7 {[%clk 0:00:15]}  Qa8 {[%clk 0:00:05]} 38. Qc6 {[%clk 0:00:13]}  Qxc6 {[%clk 0:00:04]} 39. Rxc6 {[%clk 0:00:14]}  b5 {[%clk 0:00:05]} 40. Rc5 {[%clk 0:00:10]}  bxa4 {[%clk 0:00:05]} 41. bxa4 {[%clk 0:00:11]}  Kf8 {[%clk 0:00:03]} 42. Rxd5 {[%clk 0:00:09]}  exd5 {[%clk 0:00:04]} 43. Kf1 {[%clk 0:00:09]}  Ke7 {[%clk 0:00:03]} 44. Ke2 {[%clk 0:00:10]}  Kd6 {[%clk 0:00:03]} 45. Kd3 {[%clk 0:00:10]}  h5 {[%clk 0:00:04]} 46. Nd2 {[%clk 0:00:10]}  Bd8 {[%clk 0:00:02]} 47. g4 {[%clk 0:00:09]}  hxg4 {[%clk 0:00:02]} 48. hxg4 {[%clk 0:00:10]}  f5 {[%clk 0:00:03]} 49. gxf5 {[%clk 0:00:08]}  gxf5 {[%clk 0:00:03]} 50. Nf1 {[%clk 0:00:08]}  Ke6 {[%clk 0:00:02]} 51. Ne3 {[%clk 0:00:07]}  Bg5 {[%clk 0:00:02]} 52. Nc2 {[%clk 0:00:05]}  Kd6 {[%clk 0:00:01]} 53. Na3 {[%clk 0:00:04]}  Kc6 {[%clk 0:00:02]} 54. Nb5 {[%clk 0:00:05]}  Bh6 {[%clk 0:00:01]} 55. Na7+ {[%clk 0:00:05]}  Kb6 {[%clk 0:00:01]} 56. Nc8+ {[%clk 0:00:05]}  Kc7 {[%clk 0:00:02]} 57. Ne7 {[%clk 0:00:06]} 1-0


[Site "https://www.chess.com"]

[Event "Titled Tuesday Blitz February 28 Late 2023"]
[White "Duda, Jan-Krzysztof"]
[Black "Bortnyk, Olexandr"]
[WhiteFideId "1170546"]
[BlackFideId "14120828"]
[WhiteElo "2790"]
[BlackElo "2734"]
[Result "1-0"]
[Round "09"]
[TimeControl "180+2"]
[Date "2023.02.28"]
[WhiteClock "0:00:04"]
[BlackClock "0:00:03"]

1. d4 {[%clk 0:03:00]}  d6 {[%clk 0:02:57]} 2. e4 {[%clk 0:02:59]}  Nf6 {[%clk 0:02:57]} 3. Nc3 {[%clk 0:02:59]}  e5 {[%clk 0:02:58]} 4. Nf3 {[%clk 0:02:55]}  Nbd7 {[%clk 0:02:58]} 5. Bc4 {[%clk 0:02:54]}  Be7 {[%clk 0:02:58]} 6. a4 {[%clk 0:02:53]}  c6 {[%clk 0:02:58]} 7. O-O {[%clk 0:02:52]}  h6 {[%clk 0:02:57]} 8. Re1 {[%clk 0:02:50]}  Qc7 {[%clk 0:02:57]} 9. a5 {[%clk 0:02:48]}  Nf8 {[%clk 0:02:52]} 10. d5 {[%clk 0:02:45]}  Ng6 {[%clk 0:02:50]} 11. a6 {[%clk 0:02:27]}  b5 {[%clk 0:02:50]} 12. Bb3 {[%clk 0:02:24]}  b4 {[%clk 0:02:51]} 13. Ba4 {[%clk 0:02:24]}  bxc3 {[%clk 0:02:51]} 14. Bxc6+ {[%clk 0:02:23]}  Kf8 {[%clk 0:02:52]} 15. Bxa8 {[%clk 0:02:22]}  Bg4 {[%clk 0:02:53]} 16. Qd3 {[%clk 0:02:07]}  cxb2 {[%clk 0:02:45]} 17. Bxb2 {[%clk 0:02:08]}  Nf4 {[%clk 0:02:44]} 18. Qb3 {[%clk 0:02:05]}  g5 {[%clk 0:02:36]} 19. Bc6 {[%clk 0:02:04]}  Kg7 {[%clk 0:02:30]} 20. Qb7 {[%clk 0:02:03]}  Qd8 {[%clk 0:02:29]} 21. Nd2 {[%clk 0:02:02]}  h5 {[%clk 0:01:51]} 22. Qxa7 {[%clk 0:02:00]}  h4 {[%clk 0:01:27]} 23. Qb7 {[%clk 0:01:48]}  Bc8 {[%clk 0:01:25]} 24. Qb3 {[%clk 0:01:44]}  Bxa6 {[%clk 0:00:42]} 25. Rxa6 {[%clk 0:01:43]}  Qc8 {[%clk 0:00:43]} 26. Ra7 {[%clk 0:01:41]}  Bd8 {[%clk 0:00:43]} 27. Ra8 {[%clk 0:01:33]}  Qg4 {[%clk 0:00:32]} 28. Qf3 {[%clk 0:01:32]}  Bb6 {[%clk 0:00:27]} 29. h3 {[%clk 0:01:08]}  Qg3 {[%clk 0:00:18]} 30. Rxh8 {[%clk 0:00:58]}  Kxh8 {[%clk 0:00:10]} 31. Kh1 {[%clk 0:00:45]}  Bxf2 {[%clk 0:00:07]} 32. Qxg3 {[%clk 0:00:33]}  hxg3 {[%clk 0:00:08]} 33. Rf1 {[%clk 0:00:34]}  g4 {[%clk 0:00:07]} 34. h4 {[%clk 0:00:24]}  Be3 {[%clk 0:00:05]} 35. Bc1 {[%clk 0:00:21]}  Bc5 {[%clk 0:00:04]} 36. Bb5 {[%clk 0:00:18]}  Kg7 {[%clk 0:00:03]} 37. Bd3 {[%clk 0:00:18]}  N6h5 {[%clk 0:00:03]} 38. Nb3 {[%clk 0:00:17]}  Bb6 {[%clk 0:00:02]} 39. Ba3 {[%clk 0:00:12]}  Nh3 {[%clk 0:00:01]} 40. Bxd6 {[%clk 0:00:10]}  Nf2+ {[%clk 0:00:01]} 41. Rxf2 {[%clk 0:00:10]}  gxf2 {[%clk 0:00:02]} 42. Bxe5+ {[%clk 0:00:10]}  f6 {[%clk 0:00:02]} 43. Bd6 {[%clk 0:00:05]}  Kf7 {[%clk 0:00:02]} 44. c4 {[%clk 0:00:05]}  Be3 {[%clk 0:00:02]} 45. c5 {[%clk 0:00:05]}  Bf4 {[%clk 0:00:02]} 46. Bxf4 {[%clk 0:00:04]}  Nxf4 {[%clk 0:00:03]} 47. Ba6 {[%clk 0:00:04]}  g3 {[%clk 0:00:01]} 48. c6 {[%clk 0:00:04]}  Ke7 {[%clk 0:00:02]} 49. c7 {[%clk 0:00:04]}  f1=Q+ {[%clk 0:00:02]} 50. Bxf1 {[%clk 0:00:04]}  Kd7 {[%clk 0:00:03]} 51. d6 {[%clk 0:00:04]} 1-0


[Site "https://www.chess.com"]

[Event "Titled Tuesday Blitz February 28 Late 2023"]
[White "Paravyan, David"]
[Black "Baskakov, Egor"]
[WhiteFideId "4194985"]
[BlackFideId "24197866"]
[WhiteElo "2577"]
[BlackElo "2212"]
[Result "1-0"]
[Round "09"]
[TimeControl "180+2"]
[Date "2023.02.28"]
[WhiteClock "0:00:04"]
[BlackClock "0:00:07"]

1. e4 {[%clk 0:03:00]}  c5 {[%clk 0:03:00]} 2. Nf3 {[%clk 0:03:01]}  Nf6 {[%clk 0:03:00]} 3. Nc3 {[%clk 0:03:01]}  d5 {[%clk 0:03:00]} 4. exd5 {[%clk 0:03:02]}  Nxd5 {[%clk 0:03:00]} 5. Bb5+ {[%clk 0:03:03]}  Bd7 {[%clk 0:03:00]} 6. Ne5 {[%clk 0:03:03]}  e6 {[%clk 0:03:01]} 7. Nxd7 {[%clk 0:03:02]}  Nxd7 {[%clk 0:03:01]} 8. Nxd5 {[%clk 0:03:02]}  exd5 {[%clk 0:03:01]} 9. O-O {[%clk 0:03:01]}  a6 {[%clk 0:03:01]} 10. Bxd7+ {[%clk 0:02:55]}  Qxd7 {[%clk 0:03:02]} 11. Re1+ {[%clk 0:02:51]}  Be7 {[%clk 0:03:03]} 12. d4 {[%clk 0:02:52]}  O-O {[%clk 0:03:02]} 13. Bf4 {[%clk 0:02:17]}  Rfe8 {[%clk 0:02:43]} 14. Be5 {[%clk 0:02:09]}  Qb5 {[%clk 0:02:32]} 15. dxc5 {[%clk 0:02:03]}  Bxc5 {[%clk 0:02:28]} 16. Qg4 {[%clk 0:02:00]}  Bf8 {[%clk 0:02:28]} 17. Rad1 {[%clk 0:01:44]}  Re6 {[%clk 0:02:20]} 18. Bc3 {[%clk 0:01:38]}  Rae8 {[%clk 0:02:09]} 19. Rxe6 {[%clk 0:01:37]}  fxe6 {[%clk 0:02:03]} 20. Re1 {[%clk 0:01:32]}  Qd7 {[%clk 0:01:49]} 21. h4 {[%clk 0:01:17]}  b5 {[%clk 0:01:41]} 22. h5 {[%clk 0:01:15]}  h6 {[%clk 0:01:41]} 23. Bd4 {[%clk 0:01:11]}  Qf7 {[%clk 0:01:33]} 24. Re3 {[%clk 0:01:09]}  Bd6 {[%clk 0:00:55]} 25. Rf3 {[%clk 0:01:09]}  Qd7 {[%clk 0:00:55]} 26. Rf6 {[%clk 0:00:54]}  Re7 {[%clk 0:00:36]} 27. Be3 {[%clk 0:00:20]}  e5 {[%clk 0:00:12]} 28. Qg6 {[%clk 0:00:20]}  Bc7 {[%clk 0:00:12]} 29. Bxh6 {[%clk 0:00:18]}  Rf7 {[%clk 0:00:09]} 30. Bg5 {[%clk 0:00:15]}  Kf8 {[%clk 0:00:05]} 31. Rxf7+ {[%clk 0:00:11]}  Qxf7 {[%clk 0:00:06]} 32. Qc6 {[%clk 0:00:06]}  Kg8 {[%clk 0:00:04]} 33. h6 {[%clk 0:00:03]}  e4 {[%clk 0:00:04]} 34. hxg7 {[%clk 0:00:03]}  Kxg7 {[%clk 0:00:05]} 35. Qh6+ {[%clk 0:00:02]}  Kg8 {[%clk 0:00:05]} 36. Bf6 {[%clk 0:00:03]}  Qh7 {[%clk 0:00:05]} 37. Qg5+ {[%clk 0:00:04]}  Kf7 {[%clk 0:00:05]} 38. Bd4 {[%clk 0:00:02]}  Ke6 {[%clk 0:00:04]} 39. Qf6+ {[%clk 0:00:02]}  Kd7 {[%clk 0:00:05]} 40. g3 {[%clk 0:00:03]}  Qh5 {[%clk 0:00:05]} 41. Kg2 {[%clk 0:00:03]}  Qd1 {[%clk 0:00:04]} 42. Qf7+ {[%clk 0:00:03]}  Kc6 {[%clk 0:00:05]} 43. Qe6+ {[%clk 0:00:03]}  Bd6 {[%clk 0:00:05]} 44. Qc8+ {[%clk 0:00:03]}  Bc7 {[%clk 0:00:05]} 45. Qxa6+ {[%clk 0:00:04]}  Kd7 {[%clk 0:00:06]} 46. Qxb5+ {[%clk 0:00:04]}  Kc8 {[%clk 0:00:06]} 47. Qa6+ {[%clk 0:00:04]}  Kd7 {[%clk 0:00:07]} 48. Qb5+ {[%clk 0:00:04]}  Kc8 {[%clk 0:00:07]} 49. Qxd5 {[%clk 0:00:02]}  Qf3+ {[%clk 0:00:07]} 50. Kg1 {[%clk 0:00:03]}  Qd1+ {[%clk 0:00:07]} 51. Kh2 {[%clk 0:00:03]}  e3 {[%clk 0:00:07]} 52. Qa8+ {[%clk 0:00:03]}  Kd7 {[%clk 0:00:07]} 53. Bxe3 {[%clk 0:00:03]}  Qh5+ {[%clk 0:00:06]} 54. Kg2 {[%clk 0:00:04]}  Qe2 {[%clk 0:00:07]} 55. Qe4 {[%clk 0:00:03]}  Qd1 {[%clk 0:00:07]} 56. Qd3+ {[%clk 0:00:04]} 1-0


[Site "https://www.chess.com"]

[Event "Titled Tuesday Blitz February 28 Late 2023"]
[White "Ibarra Jerez, Jose Carlos"]
[Black "Grischuk, Alexander"]
[WhiteFideId "2226332"]
[BlackFideId "4126025"]
[WhiteElo "2638"]
[BlackElo "2727"]
[Result "1/2-1/2"]
[Round "09"]
[TimeControl "180+2"]
[Date "2023.02.28"]
[WhiteClock "0:00:05"]
[BlackClock "0:00:02"]

1. e4 {[%clk 0:03:00]}  e6 {[%clk 0:03:00]} 2. d4 {[%clk 0:03:00]}  d5 {[%clk 0:03:01]} 3. Nc3 {[%clk 0:03:00]}  Nf6 {[%clk 0:03:00]} 4. Bg5 {[%clk 0:02:59]}  dxe4 {[%clk 0:03:00]} 5. Nxe4 {[%clk 0:02:59]}  Be7 {[%clk 0:03:01]} 6. Bxf6 {[%clk 0:03:00]}  gxf6 {[%clk 0:03:01]} 7. Nf3 {[%clk 0:02:59]}  f5 {[%clk 0:03:01]} 8. Nc3 {[%clk 0:02:59]}  a6 {[%clk 0:03:01]} 9. Qd2 {[%clk 0:02:57]}  b5 {[%clk 0:02:52]} 10. O-O-O {[%clk 0:02:56]}  Qd6 {[%clk 0:02:28]} 11. Qe3 {[%clk 0:02:50]}  Nd7 {[%clk 0:02:11]} 12. d5 {[%clk 0:02:50]}  e5 {[%clk 0:02:11]} 13. Bxb5 {[%clk 0:02:48]}  e4 {[%clk 0:01:54]} 14. Bc6 {[%clk 0:02:24]}  Rb8 {[%clk 0:01:31]} 15. Nd4 {[%clk 0:02:24]}  Qg6 {[%clk 0:01:24]} 16. Kb1 {[%clk 0:02:15]}  O-O {[%clk 0:01:20]} 17. f3 {[%clk 0:02:02]}  Ne5 {[%clk 0:01:18]} 18. b3 {[%clk 0:01:51]}  Bg5 {[%clk 0:00:16]} 19. Qe2 {[%clk 0:01:49]}  Qd6 {[%clk 0:00:14]} 20. fxe4 {[%clk 0:01:44]}  Qb4 {[%clk 0:00:15]} 21. Na4 {[%clk 0:01:35]}  f4 {[%clk 0:00:13]} 22. Qe1 {[%clk 0:01:10]}  Qd6 {[%clk 0:00:09]} 23. Nf5 {[%clk 0:00:59]}  Bxf5 {[%clk 0:00:08]} 24. exf5 {[%clk 0:01:00]}  Bf6 {[%clk 0:00:08]} 25. Nc3 {[%clk 0:00:59]}  Qa3 {[%clk 0:00:03]} 26. Ne4 {[%clk 0:00:51]}  Bh8 {[%clk 0:00:03]} 27. f6 {[%clk 0:00:50]}  Rfd8 {[%clk 0:00:03]} 28. Qh4 {[%clk 0:00:49]}  Nc4 {[%clk 0:00:01]} 29. Qg5+ {[%clk 0:00:28]}  Kf8 {[%clk 0:00:02]} 30. Qh6+ {[%clk 0:00:28]}  Kg8 {[%clk 0:00:01]} 31. Qg5+ {[%clk 0:00:17]}  Kf8 {[%clk 0:00:02]} 32. Qh6+ {[%clk 0:00:13]}  Kg8 {[%clk 0:00:02]} 33. Qg5+ {[%clk 0:00:05]} 1/2-1/2


[Site "https://www.chess.com"]

[Event "Titled Tuesday Blitz February 28 Late 2023"]
[White "Gokerkan, Cem Kaan"]
[Black "Bortnyk, Mykola"]
[WhiteFideId "6336760"]
[BlackFideId "14120836"]
[WhiteElo "2365"]
[BlackElo "2582"]
[Result "1-0"]
[Round "09"]
[TimeControl "180+2"]
[Date "2023.02.28"]
[WhiteClock "0:00:05"]
[BlackClock "0:00:02"]

1. e4 {[%clk 0:03:00]}  Nf6 {[%clk 0:02:58]} 2. e5 {[%clk 0:03:01]}  Nd5 {[%clk 0:02:58]} 3. d4 {[%clk 0:03:02]}  d6 {[%clk 0:02:59]} 4. c4 {[%clk 0:03:03]}  Nb6 {[%clk 0:02:59]} 5. f4 {[%clk 0:03:03]}  dxe5 {[%clk 0:02:59]} 6. fxe5 {[%clk 0:03:04]}  Nc6 {[%clk 0:02:59]} 7. Be3 {[%clk 0:03:03]}  Bf5 {[%clk 0:03:00]} 8. Nc3 {[%clk 0:02:59]}  e6 {[%clk 0:03:00]} 9. Nf3 {[%clk 0:02:59]}  Qd7 {[%clk 0:03:01]} 10. Bd3 {[%clk 0:02:43]}  Bg4 {[%clk 0:03:00]} 11. c5 {[%clk 0:02:22]}  Bxf3 {[%clk 0:02:46]} 12. Qxf3 {[%clk 0:02:18]}  Bxc5 {[%clk 0:02:47]} 13. dxc5 {[%clk 0:02:15]}  Nxe5 {[%clk 0:02:47]} 14. Qe4 {[%clk 0:01:38]}  Nxd3+ {[%clk 0:02:40]} 15. Ke2 {[%clk 0:01:39]}  Nxc5 {[%clk 0:02:01]} 16. Bxc5 {[%clk 0:01:39]}  O-O-O {[%clk 0:02:01]} 17. Rad1 {[%clk 0:01:40]}  Nd5 {[%clk 0:02:01]} 18. Bf2 {[%clk 0:00:56]}  Nxc3+ {[%clk 0:01:43]} 19. bxc3 {[%clk 0:00:57]}  Qb5+ {[%clk 0:01:44]} 20. Kf3 {[%clk 0:00:52]}  Qh5+ {[%clk 0:01:40]} 21. g4 {[%clk 0:00:52]}  Qa5 {[%clk 0:01:29]} 22. Rxd8+ {[%clk 0:00:50]}  Rxd8 {[%clk 0:01:28]} 23. c4 {[%clk 0:00:37]}  Qxa2 {[%clk 0:01:22]} 24. Rb1 {[%clk 0:00:37]}  Qa6 {[%clk 0:01:16]} 25. h4 {[%clk 0:00:33]}  h6 {[%clk 0:01:08]} 26. Rb5 {[%clk 0:00:32]}  f6 {[%clk 0:00:50]} 27. g5 {[%clk 0:00:25]}  hxg5 {[%clk 0:00:50]} 28. hxg5 {[%clk 0:00:26]}  fxg5 {[%clk 0:00:48]} 29. Kg2 {[%clk 0:00:23]}  g4 {[%clk 0:00:43]} 30. Qxg4 {[%clk 0:00:22]}  Qc6+ {[%clk 0:00:41]} 31. Qf3 {[%clk 0:00:18]}  Qxf3+ {[%clk 0:00:38]} 32. Kxf3 {[%clk 0:00:19]}  b6 {[%clk 0:00:36]} 33. Rg5 {[%clk 0:00:19]}  Rf8+ {[%clk 0:00:34]} 34. Ke3 {[%clk 0:00:17]}  Rf7 {[%clk 0:00:34]} 35. Bg3 {[%clk 0:00:15]}  a5 {[%clk 0:00:34]} 36. Rg6 {[%clk 0:00:08]}  Kd7 {[%clk 0:00:34]} 37. Be5 {[%clk 0:00:08]}  a4 {[%clk 0:00:32]} 38. Bxg7 {[%clk 0:00:03]}  c6 {[%clk 0:00:25]} 39. Be5 {[%clk 0:00:03]}  b5 {[%clk 0:00:26]} 40. Kd4 {[%clk 0:00:02]}  Rh7 {[%clk 0:00:24]} 41. Kc5 {[%clk 0:00:01]}  a3 {[%clk 0:00:21]} 42. cxb5 {[%clk 0:00:02]}  cxb5 {[%clk 0:00:21]} 43. Rg1 {[%clk 0:00:02]}  Rh5 {[%clk 0:00:20]} 44. Rg7+ {[%clk 0:00:03]}  Ke8 {[%clk 0:00:17]} 45. Kd6 {[%clk 0:00:03]}  b4 {[%clk 0:00:15]} 46. Ra7 {[%clk 0:00:04]}  Rh6 {[%clk 0:00:11]} 47. Ra4 {[%clk 0:00:04]}  Rh4 {[%clk 0:00:07]} 48. Kxe6 {[%clk 0:00:03]}  Rh6+ {[%clk 0:00:03]} 49. Bf6 {[%clk 0:00:04]}  Rxf6+ {[%clk 0:00:02]} 50. Kxf6 {[%clk 0:00:05]} 1-0


[Site "https://www.chess.com"]

[Event "Titled Tuesday Blitz February 28 Late 2023"]
[White "Swiercz, Dariusz"]
[Black "Mendonca, Leon Luke"]
[WhiteFideId "1126881"]
[BlackFideId "35028561"]
[WhiteElo "2627"]
[BlackElo "2464"]
[Result "1-0"]
[Round "09"]
[TimeControl "180+2"]
[Date "2023.02.28"]
[WhiteClock "0:00:24"]
[BlackClock "0:00:05"]

1. d4 {[%clk 0:03:00]}  Nf6 {[%clk 0:02:57]} 2. c4 {[%clk 0:03:01]}  e6 {[%clk 0:02:52]} 3. Nc3 {[%clk 0:03:01]}  Bb4 {[%clk 0:02:53]} 4. e3 {[%clk 0:03:02]}  O-O {[%clk 0:02:52]} 5. Bd2 {[%clk 0:03:03]}  b6 {[%clk 0:02:51]} 6. Bd3 {[%clk 0:03:01]}  Bb7 {[%clk 0:02:51]} 7. Nf3 {[%clk 0:03:02]}  d6 {[%clk 0:02:50]} 8. O-O {[%clk 0:03:01]}  Nbd7 {[%clk 0:02:50]} 9. Rc1 {[%clk 0:03:01]}  a5 {[%clk 0:02:45]} 10. a3 {[%clk 0:02:59]}  Bxc3 {[%clk 0:02:45]} 11. Bxc3 {[%clk 0:03:00]}  Ne4 {[%clk 0:02:41]} 12. Be1 {[%clk 0:03:01]}  f5 {[%clk 0:02:41]} 13. Nd2 {[%clk 0:03:00]}  Ndf6 {[%clk 0:02:38]} 14. f3 {[%clk 0:02:58]}  Nxd2 {[%clk 0:02:38]} 15. Qxd2 {[%clk 0:02:59]}  a4 {[%clk 0:02:35]} 16. Bh4 {[%clk 0:02:43]}  Qe8 {[%clk 0:02:34]} 17. c5 {[%clk 0:02:34]}  dxc5 {[%clk 0:01:47]} 18. dxc5 {[%clk 0:02:34]}  b5 {[%clk 0:01:48]} 19. c6 {[%clk 0:02:09]}  Bxc6 {[%clk 0:01:46]} 20. Qc3 {[%clk 0:02:10]}  Ra6 {[%clk 0:01:35]} 21. Rfd1 {[%clk 0:02:01]}  Nd5 {[%clk 0:01:33]} 22. Qe5 {[%clk 0:01:57]}  Qf7 {[%clk 0:01:17]} 23. Bf1 {[%clk 0:01:42]}  h6 {[%clk 0:01:12]} 24. Rd2 {[%clk 0:01:23]}  Rb6 {[%clk 0:01:06]} 25. Bf2 {[%clk 0:01:22]}  Ra6 {[%clk 0:01:02]} 26. Rdc2 {[%clk 0:01:22]}  Qd7 {[%clk 0:01:02]} 27. Bg3 {[%clk 0:01:11]}  Rb8 {[%clk 0:00:54]} 28. h4 {[%clk 0:01:08]}  Rab6 {[%clk 0:00:54]} 29. Bf2 {[%clk 0:01:05]}  Ra6 {[%clk 0:00:54]} 30. Rd2 {[%clk 0:01:03]}  Qe7 {[%clk 0:00:42]} 31. Bg3 {[%clk 0:00:44]}  Rf8 {[%clk 0:00:35]} 32. Rdc2 {[%clk 0:00:42]}  Qd7 {[%clk 0:00:35]} 33. Qd4 {[%clk 0:00:39]}  Qe8 {[%clk 0:00:14]} 34. Be5 {[%clk 0:00:38]}  Rf7 {[%clk 0:00:13]} 35. Kh2 {[%clk 0:00:35]}  Rb6 {[%clk 0:00:12]} 36. Rxc6 {[%clk 0:00:31]}  Rxc6 {[%clk 0:00:12]} 37. Bxb5 {[%clk 0:00:32]}  Ne7 {[%clk 0:00:12]} 38. Bxc6 {[%clk 0:00:25]}  Nxc6 {[%clk 0:00:12]} 39. Qxa4 {[%clk 0:00:26]}  Qe7 {[%clk 0:00:05]} 40. Qxc6 {[%clk 0:00:24]}  Qxh4+ {[%clk 0:00:05]} 41. Kg1 {[%clk 0:00:24]} 1-0


[Site "https://www.chess.com"]